fUST/lending_fUST_20240604
["ID","MTS","AMOUNT","RATE_DAILY","PERIOD"]
[328518360,1717485048054,-500.0,0.00021917,2]
[328518362,1717485048063,-500.0,0.00021917,2]
[328518364,1717485048072,-500.0,0.00021917,2]
[328518366,1717485048082,-500.0,0.00021917,2]
[328518368,1717485048091,-500.0,0.00021917,2]
[328518369,1717485048100,-500.0,0.00021917,2]
[328518371,1717485048110,-500.0,0.00021917,2]
[328518374,1717485048119,-462.70851652,0.00021917,2]
[328518376,1717485048129,-500.0,0.00021917,2]
[328518378,1717485048138,-546.92977872,0.00021917,2]
[328518379,1717485048147,-500.0,0.00021917,2]
[328518381,1717485048157,-500.0,0.00021917,2]
[328518383,1717485048166,-574.4,0.00021917,2]
[328518385,1717485048175,-500.0,0.00021917,2]
[328518387,1717485048185,-660.34,0.00021917,2]
[328518389,1717485048194,-117.49922132,0.00021917,2]
[328520109,1717485066422,194.93299377,9.999e-05,2]
[328520110,1717485066446,767.85577405,9.999e-05,2]
[328521234,1717485078206,691.90816563,9.999e-05,2]
[328521733,1717485090368,2688.51601568,9.999e-05,2]
[328521734,1717485091181,721.70560726,9.999e-05,2]
[328521735,1717485091915,1341.97127634,9.999e-05,2]
[328521736,1717485092266,1500.09697047,9.999e-05,2]
[328521737,1717485096897,317.21490521,9.999e-05,2]
[328521738,1717485097263,156.79013596,9.999e-05,2]
[328521739,1717485097298,3069.34478488,9.999e-05,2]
[328521740,1717485103526,154.95351395,9.999e-05,2]
[328521741,1717485105279,529.79177973,9.999e-05,2]
[328521742,1717485107147,208.20443176,9.999e-05,2]
[328521743,1717485113409,154.95351395,9.998e-05,2]
[328521744,1717485124188,154.95351395,9.999e-05,2]
[328521745,1717485129595,239.37753145,9.999e-05,2]
[328521746,1717485131131,551.95683803,9.999e-05,2]
[328521747,1717485131866,515.13028145,9.999e-05,2]
[328521748,1717485134465,1316.36987677,9.999e-05,2]
[328521749,1717485135506,261.76097194,9.999e-05,2]
[328521750,1717485140819,158.91065437,9.999e-05,2]
[328521751,1717485146933,2736.37509655,9.999e-05,2]
[328521752,1717485195874,194.93299377,9.999e-05,2]
[328521753,1717485297137,154.95351395,9.999e-05,2]
[328521756,1717485382675,267.22014918,9.999e-05,7]
[328521757,1717485393145,154.95351395,9.999e-05,7]
[328521825,1717485633880,273.37336231,9.9e-05,2]
[328521826,1717485641867,273.37336231,9.9e-05,2]
[328521827,1717485658274,273.37336231,9.9e-05,2]
[328521828,1717485666139,273.37336231,9.9e-05,2]
[328521829,1717485674818,273.37336231,9.9e-05,2]
[328521830,1717485683552,273.37336231,9.9e-05,2]
[328521831,1717485698893,273.37336231,9.9e-05,2]
[328521832,1717485707868,273.37336231,9.9e-05,2]
[328521833,1717485716143,165.72925472,9.9e-05,2]
[328521834,1717485732852,16171.09228359,9.9e-05,2]
[328521835,1717485752780,514.63984168,9.9e-05,2]
[328521836,1717485752814,786.90191887,9.9e-05,2]
[328521837,1717485752847,2400.35210555,9.9e-05,2]
[328521838,1717485775526,154.9690062,9.999e-05,2]
[328521839,1717485803779,161.46074479,0.000142,2]
[328521840,1717485804222,161.46074479,0.000142,2]
[328521841,1717485805290,161.46074479,0.000142,2]
[328521842,1717485805760,161.46074479,0.000142,2]
[328521843,1717485806217,161.46074479,0.000142,2]
[328521844,1717485807285,161.46074479,0.000142,2]
[328521845,1717485807720,161.46074479,0.000142,2]
[328521846,1717485808172,161.46074479,0.000142,2]
[328521847,1717485808620,161.46074479,0.000142,2]
[328521848,1717485809073,161.46074479,0.000142,2]
[328521849,1717485809599,161.46074479,0.000142,2]
[328521850,1717485810117,161.46074,0.000142,2]
[328521851,1717485934355,685.80898577,9.999e-05,2]
[328521858,1717486056483,-154.9690062,0.00018691,7]
[328521859,1717486056506,-154.9690062,0.00018692,2]
[328521860,1717486056520,-3790.0619876,0.00018692,2]
[328521861,1717486112777,-3069.34478488,0.0001869,2]
[328521862,1717486112799,-3069.34478488,0.0001869,2]
[328521863,1717486112810,-1796.31043024,0.0001869,2]
[328521864,1717486118611,161.46074467,9.9e-05,2]
[328521865,1717486119775,161.46074467,9.9e-05,2]
[328521866,1717486120235,161.46074467,9.9e-05,2]
[328521867,1717486120685,161.46074467,9.9e-05,2]
[328521868,1717486121319,161.46074467,9.9e-05,2]
[328521869,1717486121777,161.46074467,9.9e-05,2]
[328521870,1717486122826,161.46074467,9.9e-05,2]
[328521871,1717486123834,161.46074467,9.9e-05,2]
[328521872,1717486124864,161.46074467,9.9e-05,2]
[328521873,1717486125445,161.46074467,9.9e-05,2]
[328521874,1717486127141,161.46074467,9.9e-05,2]
[328521875,1717486127814,161.46074,9.9e-05,2]
[328521941,1717486232103,-456.07741035,0.00018596,2]
[328521944,1717486232121,-1904.43006571,0.00018685,2]
[328521947,1717486232134,-685.80898577,0.00018686,2]
[328521949,1717486232144,-10533.03173901,0.00018687,2]
[328521951,1717486232154,-28105.66055575,0.0001869,2]
[328521953,1717486232163,-11087.33723422,0.00018697,2]
[328521955,1717486232173,-24900.0,0.00018698,2]
[328521957,1717486232183,-512.01825932,0.000189,2]
[328521959,1717486232193,-16344.41407197,0.00019699,2]
[328521961,1717486232203,-2431.86523108,0.00019816,2]
[328521964,1717486232212,-463.1923524,0.0002,2]
[328521966,1717486232222,-456.07741035,0.00020068,2]
[328521968,1717486232231,-972.63829779,0.000209,2]
[328521970,1717486232241,-347.06165822,0.00021,2]
[328521972,1717486232251,-8815.17370534,0.00021079,2]
[328521974,1717486232260,-611.74783864,0.0002108,2]
[328521976,1717486232270,-972.63829777,0.00021173,2]
[328521978,1717486232279,-155.3,0.00021286,5]
[328521980,1717486232289,-171.52506784,0.00021445,2]
[328521982,1717486232298,-237.44853587,0.00021445,2]
[328521984,1717486232308,-500.0,0.00021445,2]
[328521986,1717486232318,-345.83087203,0.00021445,2]
[328521988,1717486232328,-500.0,0.00021445,2]
[328521990,1717486232338,-500.0,0.00021445,2]
[328521992,1717486232347,-500.0,0.00021445,2]
[328521994,1717486232356,-500.0,0.00021445,2]
[328521996,1717486232365,-546.14935585,0.00021445,2]
[328521998,1717486232375,-482.98097176,0.00021445,2]
[328522001,1717486232386,-500.0,0.00021445,2]
[328522003,1717486232395,-500.0,0.00021445,2]
[328522005,1717486232405,-587.4558006,0.00021445,2]
[328522007,1717486232414,-159.28651944,0.00021445,2]
[328522009,1717486232424,-500.0,0.00021445,2]
[328522011,1717486232433,-500.0,0.00021445,2]
[328522013,1717486232443,-972.63829777,0.00021446,2]
[328522015,1717486232452,-456.07741035,0.0002154,2]
[328522017,1717486232462,-4234.71341694,0.00021658,2]
[328522019,1717486232472,-972.63829777,0.00021718,2]
[328522021,1717486232481,-2000.0,0.00021817,2]
[328522023,1717486232490,-155.3,0.00021842,5]
[328522025,1717486232500,-155.44335122,0.00021915,2]
[328522027,1717486232509,-841.54595001,0.00021915,2]
[328522029,1717486232519,-1107.27862594,0.00021915,2]
[328522031,1717486232529,-309.6863462,0.00021916,7]
[328522033,1717486232538,-20255.66033049,0.00021917,7]
[328522035,1717486232547,-500.0,0.00021917,2]
[328522037,1717486232557,-500.0,0.00021917,2]
[328522039,1717486232567,-500.0,0.00021917,2]
[328522041,1717486232576,-500.0,0.00021917,2]
[328522043,1717486232586,-500.0,0.00021917,2]
[328522046,1717486232595,-500.0,0.00021917,2]
[328522048,1717486232605,-500.0,0.00021917,2]
[328522050,1717486232615,-500.0,0.00021917,2]
[328522052,1717486232624,-500.0,0.00021917,2]
[328522054,1717486232633,-500.0,0.00021917,2]
[328522056,1717486232642,-500.0,0.00021917,2]
[328522058,1717486232651,-500.0,0.00021917,2]
[328522059,1717486232665,-500.0,0.00021917,2]
[328522062,1717486232675,-500.0,0.00021917,2]
[328522064,1717486232684,-500.0,0.00021917,2]
[328522066,1717486232693,-200.0,0.00021917,2]
[328522068,1717486232702,-522.22,0.00021917,2]
[328522070,1717486232712,-500.0,0.00021917,2]
[328522072,1717486232721,-611.53,0.00021917,2]
[328522074,1717486232731,-324.48481084,0.00021917,2]
[328522076,1717486232743,-500.0,0.00021917,2]
[328522078,1717486232752,-500.0,0.00021917,2]
[328522080,1717486232761,-500.0,0.00021917,2]
[328522082,1717486232770,-500.0,0.00021917,2]
[328522084,1717486232780,-615.70718832,0.00021917,2]
[328522086,1717486232790,-500.0,0.00021917,2]
[328522088,1717486232799,-500.0,0.00021917,2]
[328522090,1717486232808,-500.0,0.00021917,2]
[328522092,1717486232817,-500.0,0.00021917,2]
[328522094,1717486232827,-500.0,0.00021917,2]
[328522096,1717486232836,-500.0,0.00021917,2]
[328522098,1717486232847,-500.0,0.00021917,2]
[328522100,1717486232858,-500.0,0.00021917,2]
[328522102,1717486232868,-500.0,0.00021917,2]
[328522104,1717486232877,-500.0,0.00021917,2]
[328522106,1717486232887,-500.0,0.00021917,2]
[328522108,1717486232896,-246.79504852,0.00021917,2]
[328522110,1717486232906,-500.0,0.00021917,2]
[328522112,1717486232915,-500.0,0.00021917,2]
[328522114,1717486232924,-501.79638757,0.00021917,2]
[328522116,1717486232933,-500.0,0.00021917,2]
[328522118,1717486232942,-500.0,0.00021917,2]
[328522120,1717486232951,-532.92765801,0.00021917,2]
[328522122,1717486232961,-500.0,0.00021917,2]
[328522124,1717486232973,-500.0,0.00021917,2]
[328522127,1717486232982,-500.0,0.00021917,2]
[328522129,1717486232991,-500.0,0.00021917,2]
[328522131,1717486233000,-501.41647649,0.00021917,2]
[328522133,1717486233010,-501.60145942,0.00021917,2]
[328522135,1717486233019,-500.0,0.00021917,2]
[328522137,1717486233028,-500.0,0.00021917,2]
[328522139,1717486233037,-500.0,0.00021917,2]
[328522141,1717486233046,-500.9445073,0.00021917,2]
[328522143,1717486233055,-502.21309355,0.00021917,2]
[328522145,1717486233064,-500.0,0.00021917,2]
[328522147,1717486233073,-500.0,0.00021917,2]
[328522149,1717486233083,-250.49820729,0.00021917,2]
[328522151,1717486233092,-500.0,0.00021917,2]
[328522153,1717486233102,-500.0,0.00021917,2]
[328522155,1717486233111,-500.0,0.00021917,2]
[328522157,1717486233121,-500.0,0.00021917,2]
[328522159,1717486233130,-500.0,0.00021917,2]
[328522161,1717486233140,-546.12,0.00021917,2]
[328522163,1717486233149,-500.0,0.00021917,2]
[328522165,1717486233159,-500.0,0.00021917,2]
[328522167,1717486233169,-500.0,0.00021917,2]
[328522169,1717486233178,-500.0,0.00021917,2]
[328522171,1717486233188,-500.0,0.00021917,2]
[328522173,1717486233198,-500.0,0.00021917,2]
[328522175,1717486233208,-500.0,0.00021917,2]
[328522177,1717486233217,-511.41,0.00021917,2]
[328522179,1717486233227,-500.0,0.00021917,2]
[328522181,1717486233237,-500.0,0.00021917,2]
[328522183,1717486233247,-500.0,0.00021917,2]
[328522185,1717486233257,-500.0,0.00021917,2]
[328522187,1717486233266,-509.86458084,0.00021917,2]
[328522189,1717486233275,-500.0,0.00021917,2]
[328522191,1717486233285,-500.0,0.00021917,2]
[328522193,1717486233294,-500.0,0.00021917,2]
[328522195,1717486233303,-500.0,0.00021917,2]
[328522197,1717486233312,-500.0,0.00021917,2]
[328522199,1717486233321,-500.0,0.00021917,2]
[328522201,1717486233331,-500.0,0.00021917,2]
[328522203,1717486233340,-477.87840502,0.00021917,2]
[328522205,1717486233350,-638.63048373,0.00021917,2]
[328522207,1717486233359,-500.0,0.00021917,2]
[328522209,1717486233368,-500.0,0.00021917,2]
[328522211,1717486233378,-500.0,0.00021917,2]
[328522214,1717486233388,-500.0,0.00021917,2]
[328522216,1717486233398,-500.0,0.00021917,2]
[328522218,1717486233407,-500.0,0.00021917,2]
[328522219,1717486233416,-505.08410815,0.00021917,2]
[328522221,1717486233425,-500.0,0.00021917,2]
[328522224,1717486233434,-500.0,0.00021917,2]
[328522225,1717486233443,-502.3556379,0.00021917,2]
[328522228,1717486233453,-500.0,0.00021917,2]
[328522230,1717486233463,-515.74,0.00021917,2]
[328522232,1717486233472,-301.30429966,0.00021917,2]
[328522234,1717486233481,-500.0,0.00021917,2]
[328522236,1717486233490,-500.0,0.00021917,2]
[328522238,1717486233499,-500.0,0.00021917,2]
[328522240,1717486233509,-500.0,0.00021917,2]
[328522242,1717486233518,-500.0,0.00021917,2]
[328522244,1717486233528,-500.0,0.00021917,2]
[328522246,1717486233538,-500.0,0.00021917,2]
[328522248,1717486233548,-500.0,0.00021917,2]
[328522250,1717486233557,-501.42724432,0.00021917,2]
[328522252,1717486233567,-500.0,0.00021917,2]
[328522254,1717486233576,-500.0,0.00021917,2]
[328522256,1717486233585,-507.11,0.00021917,2]
[328522258,1717486233595,-500.0,0.00021917,2]
[328522260,1717486233604,-500.0,0.00021917,2]
[328522262,1717486233614,-500.0,0.00021917,2]
[328522264,1717486233623,-500.0,0.00021917,2]
[328522266,1717486233633,-500.0,0.00021917,2]
[328522268,1717486233642,-500.0,0.00021917,2]
[328522270,1717486233652,-500.0,0.00021917,2]
[328522272,1717486233664,-500.0,0.00021917,2]
[328522274,1717486233674,-500.0,0.00021917,2]
[328522276,1717486233683,-500.0,0.00021917,2]
[328522278,1717486233692,-500.0,0.00021917,2]
[328522280,1717486233702,-500.0,0.00021917,2]
[328522282,1717486233711,-500.0,0.00021917,2]
[328522284,1717486233721,-500.0,0.00021917,2]
[328522286,1717486233730,-500.0,0.00021917,2]
[328522288,1717486233739,-500.0,0.00021917,2]
[328522290,1717486233749,-500.0,0.00021917,2]
[328522292,1717486233759,-606.82,0.00021917,2]
[328522294,1717486233769,-504.01,0.00021917,2]
[328522296,1717486233778,-500.0,0.00021917,2]
[328522298,1717486233789,-500.0,0.00021917,2]
[328522300,1717486233799,-536.76337186,0.00021917,2]
[328522302,1717486233809,-500.0,0.00021917,2]
[328522304,1717486233819,-500.0,0.00021917,2]
[328522306,1717486233829,-500.0,0.00021917,2]
[328522309,1717486233839,-500.0,0.00021917,2]
[328522311,1717486233849,-500.0,0.00021917,2]
[328522313,1717486233858,-500.0,0.00021917,2]
[328522315,1717486233868,-500.0,0.00021917,2]
[328522316,1717486233877,-500.0,0.00021917,2]
[328522318,1717486233887,-500.0,0.00021917,2]
[328522320,1717486233897,-608.65,0.00021917,2]
[328522322,1717486233906,-500.0,0.00021917,2]
[328522324,1717486233916,-500.0,0.00021917,2]
[328522326,1717486233925,-500.0,0.00021917,2]
[328522328,1717486233934,-500.0,0.00021917,2]
[328522330,1717486233944,-500.0,0.00021917,2]
[328522332,1717486233953,-500.0,0.00021917,2]
[328522334,1717486233963,-571.78,0.00021917,2]
[328522336,1717486233973,-500.0,0.00021917,2]
[328522338,1717486233983,-500.0,0.00021917,2]
[328522340,1717486233992,-500.0,0.00021917,2]
[328522342,1717486234001,-500.0,0.00021917,2]
[328522344,1717486234010,-500.0,0.00021917,2]
[328522346,1717486234020,-166.55415904,0.00021917,2]
[328522348,1717486234029,-425.46462284,0.00021917,2]
[328522350,1717486234038,-500.0,0.00021917,2]
[328522352,1717486234047,-273.98794122,0.00021917,2]
[328522357,1717486234083,-226.01205878,0.00021917,2]
[328522359,1717486234092,-500.0,0.00021917,2]
[328522361,1717486234102,-500.0,0.00021917,2]
[328522363,1717486234111,-500.0,0.00021917,2]
[328522365,1717486234121,-500.0,0.00021917,2]
[328522367,1717486234130,-500.0,0.00021917,2]
[328522369,1717486234140,-514.60293566,0.00021917,2]
[328522371,1717486234149,-500.0,0.00021917,2]
[328522373,1717486234159,-500.0,0.00021917,2]
[328522375,1717486234168,-526.51820106,0.00021917,2]
[328522377,1717486234178,-500.0,0.00021917,2]
[328522379,1717486234187,-242.17724199,0.00021917,2]
[328522381,1717486234199,-262.21290687,0.00021917,2]
[328522383,1717486234209,-635.84,0.00021917,2]
[328522385,1717486234218,-509.75511685,0.00021917,2]
[328522387,1717486234227,-500.0,0.00021917,2]
[328522389,1717486234237,-500.0,0.00021917,2]
[328522391,1717486234246,-500.0,0.00021917,2]
[328522393,1717486234255,-287.96995048,0.00021917,2]
[328523142,1717486241994,-875.54968914,0.00021917,7]
[328523145,1717486242006,-15249.96998017,0.00021917,7]
[328523278,1717486243477,-2696.86049125,0.00021917,7]
[328523280,1717486243486,-352.21004952,0.00021917,2]
[328523282,1717486243496,-500.0,0.00021917,2]
[328523284,1717486243505,-500.0,0.00021917,2]
[328523286,1717486243515,-500.0,0.00021917,2]
[328523288,1717486243525,-500.0,0.00021917,2]
[328523290,1717486243534,-500.0,0.00021917,2]
[328523293,1717486243544,-500.0,0.00021917,2]
[328523295,1717486243553,-500.0,0.00021917,2]
[328523297,1717486243563,-500.0,0.00021917,2]
[328523299,1717486243572,-500.0,0.00021917,2]
[328523301,1717486243581,-500.0,0.00021917,2]
[328523303,1717486243591,-500.0,0.00021917,2]
[328523305,1717486243599,-500.0,0.00021917,2]
[328523306,1717486243609,-250.0,0.00021917,2]
[328523308,1717486243618,-500.0,0.00021917,2]
[328523310,1717486243627,-151.0,0.00021917,2]
[328523313,1717486243636,-500.0,0.00021917,2]
[328523315,1717486243646,-500.0,0.00021917,2]
[328523317,1717486243655,-240.97796185,0.00021917,2]
[328523319,1717486243669,-500.0,0.00021917,2]
[328523321,1717486243678,-507.71,0.00021917,2]
[328523323,1717486243688,-500.0,0.00021917,2]
[328523325,1717486243697,-151.0,0.00021917,2]
[328523327,1717486243706,-151.0,0.00021917,2]
[328523329,1717486243715,-151.0,0.00021917,2]
[328523331,1717486243724,-151.0,0.00021917,2]
[328523333,1717486243734,-151.0,0.00021917,2]
[328523335,1717486243743,-151.0,0.00021917,2]
[328523337,1717486243752,-151.0,0.00021917,2]
[328523339,1717486243761,-151.0,0.00021917,2]
[328523341,1717486243770,-232.025656,0.00021917,2]
[328523343,1717486243779,-606.54007912,0.00021917,2]
[328523345,1717486243790,-500.0,0.00021917,2]
[328523347,1717486243799,-500.0,0.00021917,2]
[328523349,1717486243808,-500.0,0.00021917,2]
[328523351,1717486243818,-500.0,0.00021917,2]
[328523353,1717486243827,-500.0,0.00021917,2]
[328523355,1717486243836,-500.0,0.00021917,2]
[328523357,1717486243846,-511.79337006,0.00021917,2]
[328523359,1717486243855,-489.58864258,0.00021917,2]
[328523361,1717486243864,-500.0,0.00021917,2]
[328523363,1717486243873,-538.96,0.00021917,2]
[328523365,1717486243882,-500.0,0.00021917,2]
[328523367,1717486243891,-500.0,0.00021917,2]
[328523369,1717486243902,-500.0,0.00021917,2]
[328523371,1717486243912,-500.0,0.00021917,2]
[328523373,1717486243921,-500.0,0.00021917,2]
[328523375,1717486243930,-534.31,0.00021917,2]
[328523377,1717486243939,-642.64,0.00021917,2]
[328523379,1717486243951,-151.0,0.00021917,2]
[328523381,1717486243960,-506.60364983,0.00021917,2]
[328523383,1717486243969,-151.0,0.00021917,2]
[328523385,1717486243978,-500.0,0.00021917,2]
[328523387,1717486243987,-151.0,0.00021917,2]
[328523389,1717486243997,-151.0,0.00021917,2]
[328523391,1717486244006,-500.0,0.00021917,2]
[328523393,1717486244015,-151.0,0.00021917,2]
[328523395,1717486244024,-502.7621016,0.00021917,2]
[328523397,1717486244033,-500.0,0.00021917,2]
[328523399,1717486244042,-151.0,0.00021917,2]
[328523401,1717486244051,-151.0,0.00021917,2]
[328523403,1717486244060,-1124.94,0.00021917,2]
[328523405,1717486244069,-151.0,0.00021917,2]
[328523407,1717486244079,-151.0,0.00021917,2]
[328523409,1717486244088,-500.0,0.00021917,2]
[328523411,1717486244097,-884.56,0.00021917,2]
[328523413,1717486244106,-151.0,0.00021917,2]
[328523415,1717486244115,-151.0,0.00021917,2]
[328523417,1717486244124,-500.0,0.00021917,2]
[328523419,1717486244133,-151.0,0.00021917,2]
[328523421,1717486244142,-229.929756,0.00021917,2]
[328523423,1717486244153,-500.0,0.00021917,2]
[328523425,1717486244163,-500.0,0.00021917,2]
[328523427,1717486244172,-500.0,0.00021917,2]
[328523429,1717486244181,-502.18649908,0.00021917,2]
[328523431,1717486244190,-503.89560646,0.00021917,2]
[328523433,1717486244200,-500.0,0.00021917,2]
[328523435,1717486244210,-500.0,0.00021917,2]
[328523437,1717486244219,-500.0,0.00021917,2]
[328523439,1717486244228,-702.22,0.00021917,2]
[328523441,1717486244237,-151.0,0.00021917,2]
[328523443,1717486244247,-151.0,0.00021917,2]
[328523445,1717486244256,-151.0,0.00021917,2]
[328523447,1717486244265,-187.196376,0.00021917,2]
[328523448,1717486244274,-500.0,0.00021917,2]
[328523451,1717486244283,-500.0,0.00021917,2]
[328523453,1717486244294,-502.66770285,0.00021917,2]
[328523455,1717486244303,-501.78171314,0.00021917,2]
[328523457,1717486244313,-811.71,0.00021917,2]
[328523459,1717486244322,-503.59864536,0.00021917,2]
[328523461,1717486244331,-500.0,0.00021917,2]
[328523463,1717486244341,-500.0,0.00021917,2]
[328523465,1717486244350,-506.2059043,0.00021917,2]
[328523467,1717486244359,-500.0,0.00021917,2]
[328523469,1717486244369,-500.0,0.00021917,2]
[328523471,1717486244379,-500.0,0.00021917,2]
[328523473,1717486244388,-500.0,0.00021917,2]
[328523475,1717486244399,-501.56956803,0.00021917,2]
[328523477,1717486244408,-409.34319081,0.00021917,2]
[328523479,1717486244418,-500.0,0.00021917,2]
[328523481,1717486244427,-500.0,0.00021917,2]
[328523483,1717486244435,-503.01910935,0.00021917,2]
[328523485,1717486244444,-505.73640594,0.00021917,2]
[328523487,1717486244453,-500.0,0.00021917,2]
[328523489,1717486244463,-500.0,0.00021917,2]
[328523491,1717486244472,-500.0,0.00021917,2]
[328523493,1717486244481,-500.0,0.00021917,2]
[328523495,1717486244491,-858.57,0.00021917,2]
[328523497,1717486244500,-500.0,0.00021917,2]
[328523499,1717486244509,-500.0,0.00021917,2]
[328523501,1717486244519,-500.0,0.00021917,2]
[328523503,1717486244528,-500.0,0.00021917,2]
[328523505,1717486244537,-502.72991314,0.00021917,2]
[328523507,1717486244547,-500.0,0.00021917,2]
[328523509,1717486244556,-500.0,0.00021917,2]
[328523511,1717486244566,-423.30441341,0.00021917,2]
[328523513,1717486244575,-503.30279191,0.00021917,2]
[328523515,1717486244584,-502.7346424,0.00021917,2]
[328523517,1717486244594,-539.11700297,0.00021917,2]
[328523518,1717486244603,-500.0,0.00021917,2]
[328523520,1717486244612,-500.0,0.00021917,2]
[328523522,1717486244622,-531.03,0.00021917,2]
[328523535,1717486244735,-500.0,0.00021917,2]
[328523537,1717486244748,-372.91156034,0.00021917,2]
[328523539,1717486244758,-565.42,0.00021917,2]
[328523541,1717486244767,-500.0,0.00021917,2]
[328523543,1717486244777,-500.0,0.00021917,2]
[328523545,1717486244786,-500.0,0.00021917,2]
[328523547,1717486244796,-501.82735925,0.00021917,2]
[328523549,1717486244806,-500.0,0.00021917,2]
[328523551,1717486244815,-500.0,0.00021917,2]
[328523553,1717486244824,-500.0,0.00021917,2]
[328523555,1717486244833,-430.58988094,0.00021917,2]
[328523557,1717486244842,-500.0,0.00021917,2]
[328523559,1717486244851,-500.0,0.00021917,2]
[328523561,1717486244860,-500.0,0.00021917,2]
[328523563,1717486244869,-267.91651107,0.00021917,2]
[328523565,1717486244878,-239.23855466,0.00021917,2]
[328523567,1717486244887,-500.0,0.00021917,2]
[328523569,1717486244896,-500.0,0.00021917,2]
[328523571,1717486244905,-500.0,0.00021917,2]
[328523573,1717486244915,-690.72,0.00021917,2]
[328523575,1717486244923,-505.40217552,0.00021917,2]
[328523577,1717486244932,-500.0,0.00021917,2]
[328523579,1717486244941,-500.0,0.00021917,2]
[328523581,1717486244950,-500.0,0.00021917,2]
[328523583,1717486244959,-500.0,0.00021917,2]
[328523585,1717486244968,-500.0,0.00021917,2]
[328523587,1717486244977,-500.0,0.00021917,2]
[328523589,1717486244986,-500.0,0.00021917,2]
[328523591,1717486244995,-500.0,0.00021917,2]
[328523593,1717486245004,-645.60044717,0.00021917,2]
[328523595,1717486245014,-500.0,0.00021917,2]
[328523597,1717486245023,-500.0,0.00021917,2]
[328523599,1717486245032,-500.0,0.00021917,2]
[328523601,1717486245041,-500.0,0.00021917,2]
[328523603,1717486245050,-500.0,0.00021917,2]
[328523605,1717486245059,-500.0,0.00021917,2]
[328523607,1717486245068,-500.0,0.00021917,2]
[328523609,1717486245077,-500.0,0.00021917,2]
[328523611,1717486245086,-500.0,0.00021917,2]
[328523613,1717486245095,-500.0,0.00021917,2]
[328523615,1717486245104,-500.0,0.00021917,2]
[328523617,1717486245114,-500.0,0.00021917,2]
[328523619,1717486245123,-500.0,0.00021917,2]
[328523621,1717486245132,-643.82208255,0.00021917,2]
[328523623,1717486245141,-500.0,0.00021917,2]
[328523625,1717486245150,-500.0,0.00021917,2]
[328523627,1717486245159,-197.30958528,0.00021917,2]
[328523629,1717486245167,-551.02,0.00021917,2]
[328523631,1717486245176,-500.0,0.00021917,2]
[328523633,1717486245185,-500.0,0.00021917,2]
[328523635,1717486245195,-11490.88,0.00021917,2]
[328523637,1717486245204,-11490.88,0.00021917,2]
[328523639,1717486245213,-11490.88,0.00021917,2]
[328523641,1717486245222,-11490.88,0.00021917,2]
[328523642,1717486245231,-11490.88,0.00021917,2]
[328523644,1717486245240,-1154.34,0.00021917,2]
[328523647,1717486245250,-11490.88,0.00021917,2]
[328523649,1717486245260,-11490.88,0.00021917,2]
[328523651,1717486245269,-11490.88,0.00021917,2]
[328523652,1717486245278,-11490.88,0.00021917,2]
[328523654,1717486245287,-11490.88,0.00021917,2]
[328523656,1717486245297,-500.0,0.00021917,2]
[328523659,1717486245306,-309.91496756,0.00021967,2]
[328523661,1717486245316,-156.85862331,0.00021969,2]
[328523663,1717486245325,-972.63829777,0.00021991,2]
[328523664,1717486245335,-1010.38920068,0.00022,2]